Cogmind - Beta 12 @@@ ROGUE MODE // 2023.03.13 @ 11:22:58 // AFD2019/Pay2Buy Player: ArabianSandBoa Result: Destroyed by G-47 Trooper with Particle Gun Performance ------------- Evolutions (3) 1500 Regions Visited (11) 2200 Robots Destroyed (115) 575 Value Destroyed (6592) 6592 Prototype IDs (8) 160 Alien Tech Used (0) 0 Bonus (2551) 2551 TOTAL SCORE: 13578 Bonus ------- High Alert Combat Kills 1851 Entered Garrisons 400 Aligned with FarCom 300 Cogmind --------- Core Integrity 0/700 Matter 256/300 Energy 280/310 System Corruption 2% Temperature Cool (15) Movement Rolling (115) Ox1 Location -7/Storage Parts ------- > --- POWER (1) -------- Fission Core > --- PROPULSION (6) --- Armored Huge Wheel > --- UTILITY (3) ------ Armor Integrity Analyzer Medium Reflective Plating > --- WEAPON (3) ------- Cooled Pulse Rifle Cooled Pulse Rifle Cooled Pulse Rifle > --- INVENTORY (10) --- Improved Gravmag System Improved Gravmag System Improved VTOL Module Improved Surge Thruster Improved Surge Thruster Improved Surge Thruster Advanced Transmission Jammer System Restoration Module Heavy Rocket Launcher Makeshift Spear Peak State ------------ > --- POWER ------------ Light Neutrino Core > --- PROPULSION ------- Armored Huge Wheel Armored Huge Wheel Armored Huge Wheel > --- UTILITY ---------- Advanced Heat Sink Improved Particle Charger Improved Medium Armor Plating > --- WEAPON ----------- Precision Shock Rifle Cooled Plasma Cannon > --- INVENTORY -------- Armored Huge Wheel Improved Gravmag System Improved VTOL Module Advanced Transmission Jammer System Restoration Module Heavy Hammer Makeshift Spear [Rating: 59] Favorites ----------- Power Light Neutrino Core Engine Improved Deuterium Engine Power Core Light Neutrino Core Propulsion Armored Huge Wheel Wheel Armored Huge Wheel Hover Unit Improved Gravmag System Flight Unit Improved Flight Unit Utility Armor Integrity Analyzer Device Advanced Heat Sink Processor Armor Integrity Analyzer Protection Improved Medium Armor Plating Weapon Antimatter Cannon Energy Gun Precision Shock Rifle Energy Cannon Cooled Plasma Cannon Ballistic Cannon Antimatter Cannon Launcher Mini Grenade Launcher Impact Weapon Heavy Hammer Piercing Weapon Makeshift Spear Build | -11 -10 -9 -9 -9 -8 -8 -7 -7 -7 -7 -7 ------- Run | Jun Mat Mat Min Exi Min Mat Fac Gar Fac Gar Sto Slots Evolved 6 | . . 2 . . . 2 2 . . . . Power . | . . . . . . . . . . . . Propulsion 4 | . . 2 . . . 2 . . . . . Utility 1 | . . . . . . . 1 . . . . Weapon 1 | . . . . . . . 1 . . . . Parts Attached 27 | . 1 1 . 5 . 5 . 6 . 5 4 Power 1 | . . . . . . . . 1 . . . Engine . | . . . . . . . . . . . . Core 1 | . . . . . . . . 1 . . . Reactor . | . . . . . . . . . . . . Propulsion 5 | . . . . 1 . 1 . 1 . 1 1 Treads . | . . . . . . . . . . . . Leg . | . . . . . . . . . . . . Wheel 2 | . . . . . . . . 1 . 1 . Hover . | . . . . . . . . . . . . Flight 3 | . . . . 1 . 1 . . . . 1 Utility 3 | . . . . . . 1 . 1 . 1 . Device 3 | . . . . . . 1 . 1 . 1 . Storage . | . . . . . . . . . . . . Processor . | . . . . . . . . . . . . Hackware . | . . . . . . . . . . . . Protection . | . . . . . . . . . . . . Artifact . | . . . . . . . . . . . . Weapon 18 | . 1 1 . 4 . 3 . 3 . 3 3 Energy Gun 4 | . . . . 1 . . . 2 . . 1 Energy Cannon 1 | . . . . . . . . 1 . . . Ballistic Gun . | . . . . . . . . . . . . Ballistic Cannon 1 | . . . . . . . . . . 1 . Launcher 7 | . 1 . . 3 . 1 . . . 1 1 Special Weapon . | . . . . . . . . . . . . Impact Weapon 2 | . . 1 . . . 1 . . . . . Slashing Weapon . | . . . . . . . . . . . . Piercing Weapon 3 | . . . . . . 1 . . . 1 1 Special Melee Weapon . | . . . . . . . . . . . . Unidentified Prototypes . | . . . . . . . . . . . . Parts Lost 35 | . . 1 . 7 . 8 . 10 . 9 . Power 4 | . . . . 1 . 1 . 1 . 1 . Propulsion 10 | . . 1 . 2 . 3 . 1 . 3 . Utility 7 | . . . . 1 . 2 . 2 . 2 . Weapon 14 | . . . . 3 . 2 . 6 . 3 . Highest Loss Streak 8 | . . 1 . 5 . 8 . 3 . 3 . To Critical Strikes 1 | . . . . . . . . . . 1 . Average Slot Usage (%) 50 | . 71 60 55 75 66 48 26 47 53 46 48 Engine 2 | . . . . 1 11 5 . 3 . . . Core 3 | . . . . 7 . . . 2 7 4 3 Wheel 8 | . . . . . . . 4 11 23 11 7 Flight 7 | . 28 27 22 42 44 23 7 . . . . Device 5 | . 14 11 11 8 . 4 . 6 . 3 . Processor 1 | . . . . . . 2 . . . 5 7 Protection 2 | . . . . . . . . 2 . 2 6 Energy Gun 5 | . . . . 1 . . . 8 . . 19 Energy Cannon 2 | . . . . . . . 6 5 . . . Ballistic Cannon 3 | . . . . . . . . 1 15 10 . Launcher 4 | . 22 11 11 12 11 3 . 1 7 4 1 Impact Weapon 1 | . 5 11 11 3 . 6 . . . . . Piercing Weapon 1 | . . . . . . 4 7 . . 2 . Naked Turns . | . . . . . . . . . . . . Heaviest Build 39 | . 5 5 5 11 11 15 10 39 31 31 29 Greatest Support 84 | 3 10 15 10 20 20 20 28 84 84 84 28 Greatest Overweight (x) 1 | . . . . . . 1 1 1 . 1 1 Average Overweight (x) . | . . . . . . . . . . . . Largest Inventory Capacity 10 | . 10 10 10 10 10 10 10 10 10 10 10 Average Capacity 10 | . 10 10 10 10 10 10 10 10 10 10 10 Most Carried 10 | . 1 1 1 2 2 3 1 9 9 9 10 Average Carried 5 | . . 1 1 1 2 1 1 5 9 7 7 Final Capacity 10 | 10 10 10 10 10 10 10 10 10 10 10 10 Final Carried 10 | . 1 1 1 2 2 1 1 9 9 7 10 Class Distribution -------------------- 75% | Mutant 13% | Sprinter 11% | Skirmisher Dominant Class ---------------- Mutant | -10/Materials Mutant | -9/Materials Mutant | -9/Mines Sprinter | -9/Exiles Sprinter | -8/Mines Sprinter | -8/Materials Mutant | -7/Factory Mutant | -7/Garrison Mutant | -7/Factory Mutant | -7/Garrison Skirmisher | -7/Storage Resources | -11 -10 -9 -9 -9 -8 -8 -7 -7 -7 -7 -7 ----------- Run | Jun Mat Mat Min Exi Min Mat Fac Gar Fac Gar Sto Matter Collected 2025 | . 189 238 . 196 . 177 . 313 4 727 181 Remotely 1330 | . 189 238 . 196 . 93 . . . 614 . Salvage Created 3866 | . 233 255 . 422 7 256 97 1846 4 407 339 Parts . | . . . . . . . . . . . . Haulers Intercepted 5 | . 2 1 . . . 2 . . . . . Recyclers Shooed . | . . . . . . . . . . . . Parts Field Recycled . | . . . . . . . . . . . . Retrieved Matter . | . . . . . . . . . . . . Parts Self-Destructed . | . . . . . . . . . . . . Prevented . | . . . . . . . . . . . . Kills | -11 -10 -9 -9 -9 -8 -8 -7 -7 -7 -7 -7 ------- Run | Jun Mat Mat Min Exi Min Mat Fac Gar Fac Gar Sto Combat Hostiles Destroyed 101 | . 6 7 . 20 . 3 . 36 . 23 6 Melee 1 | . . . . . . 1 . . . . . Guns 14 | . . . . . . . . 9 . . 5 Cannons 27 | . . . . . . . . 14 . 13 . AOE 53 | . 5 7 . 20 . . . 11 . 10 . Classes Destroyed 17 | . 5 4 . 3 . 1 1 2 1 . . Worker 3 | . 1 1 . . 1 . . . . . . Builder 1 | . . . . . . . 1 . . . . Tunneler 1 | . . 1 . . . . . . . . . Hauler 5 | . 2 1 . . . 2 . . . . . Recycler 1 | . 1 . . . . . . . . . . Operator 1 | . . . . . . . . . 1 . . Watcher 2 | . . 2 . . . . . . . . . Swarmer 21 | . 3 3 . 2 . . . 3 . 10 . Cutter 4 | . . . . . . . . 4 . . . Grunt 47 | . 3 2 . 12 . . . 19 . 8 3 Brawler 2 | . . . . 1 . . . 1 . . . Duelist 3 | . . 1 . . . . . 1 . 1 . Sentry 13 | . . 1 . . . 2 . 6 . 2 2 Hunter 3 | . . . . 3 . . . . . . . Programmer 6 | . . . . 2 . . . 1 . 2 1 Heavy 1 | . . . . . . 1 . . . . . Behemoth 1 | . . . . . . . . 1 . . . Best Kill Streak 13 | . 4 12 . 13 1 2 1 6 1 6 3 Combat Bots Only 13 | . 3 3 . 13 . 1 . 6 . 6 3 Max Kills in Single Turn 6 | . 2 3 . 6 1 1 1 2 1 3 1 Gunslinging . | . . . . . . . . . . . . Exploded 6 | . 2 3 . 6 . . . 2 . 3 . Melee 1 | . . . . . . 1 . . . . . Uniques/NPCs Destroyed . | . . . . . . . . . . . . Combat | -11 -10 -9 -9 -9 -8 -8 -7 -7 -7 -7 -7 -------- Run | Jun Mat Mat Min Exi Min Mat Fac Gar Fac Gar Sto Damage Taken 5609 | . 77 180 27 680 . 610 52 2242 . 1244 497 Core 1408 | . 44 49 18 321 . 272 52 374 . 220 58 Absorbed by Shields . | . . . . . . . . . . . . Core Remaining (%) 58 | 100 82 . . . 3 50 . . . . . Volleys Fired 287 | . 7 17 2 13 1 7 15 125 11 49 40 Largest 3 | . 2 1 1 2 1 1 1 3 2 2 3 Hottest 150 | . 60 30 30 75 36 36 35 150 80 80 60 Shots Fired 496 | . 12 17 2 16 1 7 15 221 22 85 98 Gun 212 | . . . . 2 . . . 121 . . 89 Cannon 187 | . . . . . . . 15 79 22 71 . Launcher 97 | . 12 17 2 14 1 7 . 21 . 14 9 Special . | . . . . . . . . . . . . Kinetic 115 | . . . . . . . . 22 22 71 . Thermal 161 | . . . . . . . 15 57 . . 89 Explosive 74 | . 12 17 2 14 1 7 . . . 12 9 Electromagnetic 146 | . . . . 2 . . . 142 . 2 . Robot Hit Streak 25 | . . 1 . 3 . . . 25 1 10 13 Robot Miss Streak 4 | . 1 . . 1 . . . 3 4 3 3 Penetration Max . | . . . . . . . . . . . . Secondary Targets . | . . . . . . . . . . . . Shots Hit Robots 255 | . 7 5 . 7 . 19 . 119 2 47 49 Core Hits 187 | . 11 14 . 43 1 6 1 68 1 27 15 Critical Kills . | . . . . . . . . . . . . Critical Parts Destroyed 3 | . 1 . . . . 2 . . . . . Critical Strikes 11 | . 1 . . . . 2 . 1 . 1 6 Burn 6 | . . . . . . . . . . . 6 Blast 1 | . . . . . . . . . . 1 . Corrupt 1 | . . . . . . . . 1 . . . Smash 3 | . 1 . . . . 2 . . . . . Melee Attacks 76 | . 13 5 . . . 55 2 . . . 1 Impact 45 | . 13 5 . . . 27 . . . . . Slashing . | . . . . . . . . . . . . Piercing 31 | . . . . . . 28 2 . . . 1 Sneak Attacks 6 | . 2 2 . . . 2 . . . . . Combat Hostiles . | . . . . . . . . . . . . Follow-up Attacks 2 | . . . . . . 2 . . . . . Damage Inflicted 12208 | . 749 969 12 2284 38 618 65 3911 75 2501 986 Guns 2254 | . . . . 32 . . . 1247 . . 975 Cannons 3387 | . . . . . . . . 1543 75 1769 . Explosions 5270 | . 371 629 12 2252 38 39 65 1121 . 732 11 Melee 1297 | . 378 340 . . . 579 . . . . . Ramming . | . . . . . . . . . . . . Kinetic 2411 | . . . . . . . . 567 75 1769 . Thermal 2137 | . . 18 . . . . 65 1079 . . 975 Explosive 4066 | . 371 611 12 2252 38 39 . . . 732 11 Electromagnetic 2297 | . . . . 32 . . . 2265 . . . Impact 1061 | . 378 340 . . . 343 . . . . . Slashing . | . . . . . . . . . . . . Piercing 236 | . . . . . . 236 . . . . . Highest Corruption 2 | . . . . . . . . 1 1 2 2 Average Corruption 1 | . . . . . . . . 1 1 1 2 Corruption Purged . | . . . . . . . . . . . . Corruption Blocked . | . . . . . . . . . . . . Effects 23 | . . . . . . . . 5 2 10 6 Message Errors 5 | . . . . . . . . 1 1 3 . Matter Fused 9 | . . . . . . . . 3 1 3 2 Heat Flow Errors 3 | . . . . . . . . 1 . 1 1 Energy Discharges 1 | . . . . . . . . . . 1 . Parts Rejected 1 | . . . . . . . . . . 1 . Misfires 1 | . . . . . . . . . . 1 . Alerts 3 | . . . . . . . . . . . 3 Overload Shots 1 | . . . . . . . . . . . 1 Overflow Damage 349 | . 75 9 . 17 . 108 . 20 . 120 . Projectiles 97 | . . . . . . . . 16 . 81 . Explosions 69 | . . 9 . 17 . . . 4 . 39 . Melee 183 | . 75 . . . . 108 . . . . . Knockbacks 14 | . . . . . . . . . 1 13 . Impact . | . . . . . . . . . . . . Kinetic 13 | . . . . . . . . . 1 12 . Secondary 1 | . . . . . . . . . . 1 . Self-Inflicted Damage 667 | . . 31 29 156 . 6 52 132 . 128 133 Shots 24 | . . 1 1 6 . 1 1 6 . 5 3 Rammed . | . . . . . . . . . . . . Targets Rammed . | . . . . . . . . . . . . Kicked . | . . . . . . . . . . . . Crushed . | . . . . . . . . . . . . Highest Temperature 287 | . 12 2 . 66 4 9 . 287 . 270 259 Average Temperature 76 | . 7 2 . 32 4 5 . 77 . 89 79 Received Heat Transfer 1560 | . 42 45 . 66 . 63 . 642 . 531 171 Effects 2 | . . . . . . . . 1 . 1 . Interference 2 | . . . . . . . . 1 . 1 . Siege Activations . | . . . . . . . . . . . . Robots Corrupted 2 | . . . . . . . . 2 . . . Combat Hostiles 2 | . . . . . . . . 2 . . . Parts Fried . | . . . . . . . . . . . . Impact Corruptions 8 | . 4 . . . . 4 . . . . . Robots Melted 1 | . . . . . . . . . . . 1 Combat Hostiles 1 | . . . . . . . . . . . 1 Parts Melted . | . . . . . . . . . . . . Heat Transferred 3944 | . . 50 . . . . 50 1550 . . 2294 Parts Sabotaged . | . . . . . . . . . . . . Parts Stolen . | . . . . . . . . . . . . Parts Stripped . | . . . . . . . . . . . . Power Chain Reactions 2 | . . . . . . . . 2 . . . Missiles Intercepted . | . . . . . . . . . . . . Alert | -11 -10 -9 -9 -9 -8 -8 -7 -7 -7 -7 -7 ------- Run | Jun Mat Mat Min Exi Min Mat Fac Gar Fac Gar Sto Peak Influence 2015 | . 339 727 340 . 27 488 586 2015 1167 1659 1311 Initial 1057 | . . 143 283 . . 10 221 410 1057 816 808 Average 986 | . 160 428 302 . 3 263 401 1230 1117 1180 1037 Maximum Alert Level 5 | . 1 3 1 . . 2 2 5 4 5 4 Low Security (%) 7 | . 61 28 . . 100 30 . . . . . Level 1 9 | . 38 20 100 . . 57 37 . . . . Level 2 16 | . . 46 . . . 11 62 28 . . . Level 3 24 | . . 5 . . . . . 11 11 50 75 Level 4 24 | . . . . . . . . 28 88 29 24 Level 5 17 | . . . . . . . . 31 . 20 . High Security . | . . . . . . . . . . . . Max Security . | . . . . . . . . . . . . Squads Dispatched 7 | . . 1 . . . 2 . . . . 4 Investigation 2 | . . . . . . . . . . . 2 Extermination 1 | . . . . . . . . . . . 1 Reinforcement 4 | . . 1 . . . 2 . . . . 1 Assault . | . . . . . . . . . . . . Garrison . | . . . . . . . . . . . . Intercept . | . . . . . . . . . . . . Searches Triggered . | . . . . . . . . . . . . Construction Impeded 1 | . . 1 . . . . . . . . . Haulers Reinforced 1 | . . . . . . . . . . . 1 Active Scanning Responses . | . . . . . . . . . . . . Cargo Convoy Interrupts . | . . . . . . . . . . . . Stealth | -11 -10 -9 -9 -9 -8 -8 -7 -7 -7 -7 -7 --------- Run | Jun Mat Mat Min Exi Min Mat Fac Gar Fac Gar Sto Distress Signals 3 | . . . . . . 2 . . . . 1 Communications Jammed . | . . . . . . . . . . . . Distress Signals . | . . . . . . . . . . . . Times Spotted 146 | . 6 10 . 33 . 10 3 43 2 29 10 Peak Tracking Total 23 | . 3 3 . 23 . 5 3 7 2 7 3 Tactical Retreats 12 | . . . . 1 . 1 . 5 . 5 . Traps | -11 -10 -9 -9 -9 -8 -8 -7 -7 -7 -7 -7 ------- Run | Jun Mat Mat Min Exi Min Mat Fac Gar Fac Gar Sto Traps Triggered 12 | . . . . . . . . 9 . 3 . Indirectly 2 | . . . . . . . . 2 . . . Trap Hack Attempts . | . . . . . . . . . . . . Triggered . | . . . . . . . . . . . . Disarmed . | . . . . . . . . . . . . Reprogrammed . | . . . . . . . . . . . . Reused . | . . . . . . . . . . . . Traps Extracted . | . . . . . . . . . . . . Installed . | . . . . . . . . . . . . Triggered . | . . . . . . . . . . . . Machines | -11 -10 -9 -9 -9 -8 -8 -7 -7 -7 -7 -7 ---------- Run | Jun Mat Mat Min Exi Min Mat Fac Gar Fac Gar Sto Machines Disabled 91 | . 5 10 3 3 1 18 17 14 5 3 12 Max in Single Turn 4 | . 1 3 2 1 1 2 4 2 2 1 1 Garrison Relay 6 | . . . . . . . . 5 . 1 . Phase Generator 1 | . . . . . . . . 1 . . . Machines Repaired 1 | . . . . . . . . . . . 1 Machines Sabotaged . | . . . . . . . . . . . . Overloaded Fab Kills . | . . . . . . . . . . . . Hacking | -11 -10 -9 -9 -9 -8 -8 -7 -7 -7 -7 -7 --------- Run | Jun Mat Mat Min Exi Min Mat Fac Gar Fac Gar Sto Machines Accessed 15 | . 3 . . . . 2 1 3 1 1 4 Terminals 13 | . 3 . . . . 2 . 3 . 1 4 Fabricators . | . . . . . . . . . . . . Repair Stations . | . . . . . . . . . . . . Recycling Units . | . . . . . . . . . . . . Scanalyzers . | . . . . . . . . . . . . Garrison Access 2 | . . . . . . . 1 . 1 . . Total Hacks 41 | . 14 . . . . 5 1 8 1 1 11 Successful 16 | . 7 . . . . 1 1 1 1 1 4 Failed 25 | . 7 . . . . 4 . 7 . . 7 Catastrophic 3 | . . . . . . . . 1 . . 2 Database Lockouts . | . . . . . . . . . . . . Manual 18 | . 10 . . 1 . 5 . . . . 2 Terminals 39 | . 14 . . . . 5 . 8 . 1 11 Fabricators . | . . . . . . . . . . . . Repair Stations . | . . . . . . . . . . . . Recycling Units . | . . . . . . . . . . . . Scanalyzers . | . . . . . . . . . . . . Garrison Access 2 | . . . . . . . 1 . 1 . . Terminal Hacks 10 | . 5 . . . . . . 1 . 1 3 Robot Schematic 1 | . . . . . . . . . . . 1 Robot Analysis 4 | . 4 . . . . . . . . . . Open Door 1 | . . . . . . . . . . . 1 Branch Access Points 1 | . . . . . . . . . . . 1 Emergency Access Points 2 | . . . . . . . . 1 . 1 . Zone Layout 1 | . 1 . . . . . . . . . . Fabricator Hacks . | . . . . . . . . . . . . Repair Station Hacks . | . . . . . . . . . . . . Recycling Unit Hacks . | . . . . . . . . . . . . Scanalyzer . | . . . . . . . . . . . . Garrison Access Hacks 2 | . . . . . . . 1 . 1 . . Unlock Access 2 | . . . . . . . 1 . 1 . . Unauthorized Hacks 4 | . 2 . . . . 1 . . . . 1 Terminals 4 | . 2 . . . . 1 . . . . 1 Botnet 3 | . 2 . . . . 1 . . . . . Sabotage 1 | . . . . . . . . . . . 1 Fabricators . | . . . . . . . . . . . . Repair Stations . | . . . . . . . . . . . . Recycling Units . | . . . . . . . . . . . . Scanalyzers . | . . . . . . . . . . . . Garrison Access . | . . . . . . . . . . . . Data Cores Recovered 1 | . . . . . . . . . 1 . . Used . | . . . . . . . . . . . . Hacking Detections 9 | . 3 . . . . 2 1 2 . . 1 Full Trace Events 3 | . . . . . . . . 2 . . 1 Feedback Events 1 | . . . . . . . . 1 . . . Corruption 1 | . . . . . . . . 1 . . . Feedback Blocked . | . . . . . . . . . . . . Robot Schematics Acquired 1 | . . . . . . . . . . . 1 Robots Built . | . . . . . . . . . . . . Authchips . | . . . . . . . . . . . . Time . | . . . . . . . . . . . . Total Robot Build Rating . | . . . . . . . . . . . . Part Schematics Acquired . | . . . . . . . . . . . . Parts Built . | . . . . . . . . . . . . Authchips . | . . . . . . . . . . . . Time . | . . . . . . . . . . . . Total Part Build Rating . | . . . . . . . . . . . . Parts Repaired . | . . . . . . . . . . . . Time . | . . . . . . . . . . . . Parts Recycled . | . . . . . . . . . . . . Recycled Matter . | . . . . . . . . . . . . Retrieved Matter . | . . . . . . . . . . . . Retrieved Components . | . . . . . . . . . . . . Parts Scanalyzed . | . . . . . . . . . . . . Part Schematics Acquired . | . . . . . . . . . . . . Parts Damaged . | . . . . . . . . . . . . Bothacking | -11 -10 -9 -9 -9 -8 -8 -7 -7 -7 -7 -7 ------------ Run | Jun Mat Mat Min Exi Min Mat Fac Gar Fac Gar Sto Used RIF Installer . | . . . . . . . . . . . . Robots Hacked . | . . . . . . . . . . . . Non-combat . | . . . . . . . . . . . . Combat . | . . . . . . . . . . . . Robot Hacks Applied . | . . . . . . . . . . . . Relay Couplers Released 32 | . . . . . . . . 25 . 7 . Machine Destruction 25 | . . . . . . . . 21 . 4 . Programmers 7 | . . . . . . . . 4 . 3 . Fabnet Peak Effective % . | . . . . . . . . . . . . Robots Rewired . | . . . . . . . . . . . . Allies Hacked . | . . . . . . . . . . . . Hacks Repelled . | . . . . . . . . . . . . Allies | -11 -10 -9 -9 -9 -8 -8 -7 -7 -7 -7 -7 -------- Run | Jun Mat Mat Min Exi Min Mat Fac Gar Fac Gar Sto Total Allies . | . . . . . . . . . . . . Largest Group . | . . . . . . . . . . . . Highest-Rated Group . | . . . . . . . . . . . . Highest-Rated Ally . | . . . . . . . . . . . . Total Orders . | . . . . . . . . . . . . Ally Attacks . | . . . . . . . . . . . . Total Damage . | . . . . . . . . . . . . Kills . | . . . . . . . . . . . . Allies Corrupted . | . . . . . . . . . . . . Allies Melted . | . . . . . . . . . . . . Intel | -11 -10 -9 -9 -9 -8 -8 -7 -7 -7 -7 -7 ------- Run | Jun Mat Mat Min Exi Min Mat Fac Gar Fac Gar Sto Robot Analysis Total 4 | . 4 . . . . . . . . . . Derelict Logs Recovered . | . . . . . . . . . . . . Drone Launches . | . . . . . . . . . . . . Drone Recoveries . | . . . . . . . . . . . . Exploration | -11 -10 -9 -9 -9 -8 -8 -7 -7 -7 -7 -7 ------------- Run | Jun Mat Mat Min Exi Min Mat Fac Gar Fac Gar Sto Turns Passed 3451 | . 119 114 52 217 52 268 97 1386 147 637 362 Spaces Moved 2676 | 1 133 140 123 425 172 326 56 784 63 332 121 Core 39 | 1 . . . . . 38 . . . . . Treads . | . . . . . . . . . . . . Legs . | . . . . . . . . . . . . Wheels 1331 | . . . . . . . 31 784 63 332 121 Hover . | . . . . . . . . . . . . Flight 1306 | . 133 140 123 425 172 288 25 . . . . Fastest Speed 27 | 50 37 32 37 27 27 27 35 100 100 100 100 Average Speed 67 | 50 37 33 37 28 27 32 80 103 100 102 108 Slowest Speed 115 | 50 37 37 37 37 27 100 105 115 100 115 115 Overloaded Moves . | . . . . . . . . . . . . Propulsion Burnouts . | . . . . . . . . . . . . Robots Hopped 3 | . . . . . 2 1 . . . . . Cave-ins Triggered . | . . . . . . . . . . . . Exploration Rate (%) 36 | 2 39 30 26 61 49 46 3 83 3 51 41 Regions Visited 11 Branch Regions 4 Pre-discovered Areas . | . . . . . . . . . . . . Known Exits Taken 2 | . . . . . . . 1 . 1 . . Unknown Exits Taken 7 | 1 1 1 1 1 1 1 . . . . . Scrap Searched . | . . . . . . . . . . . . Spaces Dug 57 | . 9 . . . . 20 2 . 5 15 6 Terrain Destroyed 989 | . 92 187 12 80 8 69 97 138 10 165 131 Melee 19 | . 3 . . . . 16 . . . . . Projectile 36 | . . . . . . . 4 8 10 14 . AOE 934 | . 89 187 12 80 8 53 93 130 . 151 131 Terrain Rammed . | . . . . . . . . . . . . Walls Destroyed . | . . . . . . . . . . . . Machines Disabled . | . . . . . . . . . . . . Actions | -11 -10 -9 -9 -9 -8 -8 -7 -7 -7 -7 -7 --------- Run | Jun Mat Mat Min Exi Min Mat Fac Gar Fac Gar Sto Total 3751 | . 167 179 126 503 173 420 90 1146 125 544 278 Wait 624 | . 13 17 2 59 3 31 18 175 51 150 105 Move 2659 | . 132 139 122 424 167 323 55 782 63 331 121 Hop 3 | . . . . . 2 1 . . . . . Pick Up 4 | . . . . 1 . . . 2 . 1 . Fast Attach 1 | . . . . . . . . . . 1 . Attach 16 | . . . . 2 . 4 . 5 . 3 2 Detach 16 | . 1 . . . . 2 . 6 . 1 6 Swap 10 | . 1 1 . 3 . 1 . 1 . 1 2 Drop 5 | . . . . 1 . . . 2 . 1 1 Fire 287 | . 7 17 2 13 1 7 15 125 11 49 40 Melee 72 | . 13 5 . . . 51 2 . . . 1 Ram . | . . . . . . . . . . . . Kick . | . . . . . . . . . . . . Crush . | . . . . . . . . . . . . Escape Stasis 54 | . . . . . . . . 48 . 6 . Rewire . | . . . . . . . . . . . . Trap . | . . . . . . . . . . . . Miscellaneous . | . . . . . . . . . . . . Route ------- -11/Junkyard -10/Materials -9/Materials -9/Mines -9/Exiles (discovered 2 exits: [*Min x2]) -8/Mines -8/Materials (discovered 2 exits: *Fac x2) -7/Factory -7/Garrison (discovered 3 exits: *Fac x3) -7/Factory -7/Garrison (discovered 2 exits: *Sto x2) -7/Storage (discovered 1 exit: Rec) History --------- Turn | Location | Event 1 | -11/Junkyard | Discovered new exit (range 0) 1 | -11/Junkyard | Entered Materials 110 | -10/Materials | Discovered new exit (range 11) 120 | -10/Materials | Entered another Materials area 120 | -9/Materials | Evolved 2 slots: Propulsion x2 200 | -9/Materials | Discovered new exit (range 11) 234 | -9/Materials | Entered Mines 284 | -9/Mines | Deemed a non-threat by the Exiles lab entrance 284 | -9/Mines | Discovered new exit (range 5) 286 | -9/Mines | Entered Exiles 295 | -9/Exiles | Met 8R-AWN 301 | -9/Exiles | Met EX-HEX 312 | -9/Exiles | Met EX-BIN 315 | -9/Exiles | Aligned with FarCom system 315 | -9/Exiles | Given EX-Vault access code 321 | -9/Exiles | Opened EX-Vault 326 | -9/Exiles | Warned to stay clear of 0b10 Research branches 333 | -9/Exiles | Met EX-DEC 334 | -9/Exiles | Exiles lab attacked by MAIN.C 412 | -9/Exiles | Destroyed 7 combat bots 438 | -9/Exiles | Discovered new exit (range 14) 448 | -9/Exiles | Core integrity fell below 50% 453 | -9/Exiles | Core integrity fell below 20% 472 | -9/Exiles | Destroyed 13 combat bots 481 | -9/Exiles | Lost 5 parts (1p2n1u1w) 491 | -9/Exiles | Discovered new exit (range 12) 503 | -9/Exiles | Entered Mines 547 | -8/Mines | Discovered new exit (range 8) 555 | -8/Mines | Entered Materials 555 | -8/Materials | Evolved 2 slots: Propulsion x2 611 | -8/Materials | Build established: Sprinter 696 | -8/Materials | Discovered new exit (range 7) 781 | -8/Materials | Lost 8 parts (1p3n2u2w) 823 | -8/Materials | Discovered new exit (range 3) 823 | -8/Materials | Entered Factory 823 | -7/Factory | Evolved 2 slots: Utility x1, Weapon x1 882 | -7/Factory | Identified exit to Garrison 920 | -7/Factory | Entered Garrison 960 | -7/Garrison | Triggered checkpoint 986 | -7/Garrison | Garrison Relay disabled 1008 | -7/Garrison | Build established: Mutant 1189 | -7/Garrison | Triggered checkpoint 1222 | -7/Garrison | Discovered new exit (range 5) 1267 | -7/Garrison | Triggered checkpoint 1268 | -7/Garrison | Heavy support dispatched to Factory 1276 | -7/Garrison | Triggered checkpoint 1287 | -7/Garrison | Triggered checkpoint 1490 | -7/Garrison | Triggered checkpoint 1524 | -7/Garrison | Garrison Relay disabled 1543 | -7/Garrison | Phase Generator disabled 1594 | -7/Garrison | Garrison Relay disabled 1634 | -7/Garrison | Triggered checkpoint 1772 | -7/Garrison | Core integrity fell below 50% 1805 | -7/Garrison | Garrison Relay disabled 1814 | -7/Garrison | Triggered checkpoint 1878 | -7/Garrison | Discovered new exit (range 12) 2048 | -7/Garrison | Garrison Relay disabled 2060 | -7/Garrison | Triggered checkpoint 2117 | -7/Garrison | Lost 3 parts (1u2w) 2128 | -7/Garrison | Heavy support dispatched to Factory 2176 | -7/Garrison | Discovered new exit (range 4) 2179 | -7/Garrison | Attempted to access garrison exit controls, blocked by remote lockdown 2197 | -7/Garrison | Heavy support dispatched to Factory 2205 | -7/Garrison | Spotted B-75 Beast 2221 | -7/Garrison | Destroyed B-75 Beast 2306 | -7/Garrison | Entered Factory 2450 | -7/Factory | Identified exit to Garrison 2453 | -7/Factory | Entered Garrison 2555 | -7/Garrison | Triggered checkpoint 2632 | -7/Garrison | Triggered checkpoint 2854 | -7/Garrison | Core integrity fell below 20% 2886 | -7/Garrison | Lost 3 parts (1p1u1w) 2890 | -7/Garrison | Triggered checkpoint 2925 | -7/Garrison | Triggered checkpoint 2961 | -7/Garrison | Garrison Relay disabled 2976 | -7/Garrison | Discovered new exit (range 9) 3058 | -7/Garrison | Discovered new exit (range 14) 3090 | -7/Garrison | Entered Storage 3239 | -7/Storage | Identified exit to Recycling 3452 | -7/Storage | Destroyed by G-47 Trooper with Particle Gun Last Messages --------------- >>Force(Sabotage) SYSTEM_VULNERABLE[Compression Vault] NETWORK_OVERLOAD COORDINATES_RETRIEVED 03421_ ALERT: Suspicious activity at Terminal S011. Dispatching Investigation squad. 03421_ Terminal disabled. 03422_ K-01 Serf collects debris. 03425_ System corrupted: IFF burst signal emitted. 03426_ K-01 Serf collects debris. 03427_ ALERT: Hostile activity reported, dispatching reinforcements to area. [Purchased: Imp. Surge Thruster] 03431_ Dropped Hvy. Hammer. 03447_ K-01 Serf destroyed. 03447_ G-47 Trooper suffers critical hit (Burn). 03449_ G-47 Trooper overheating. 03449_ K-01 Serf collects debris. 03450_ G-47 Trooper suffers critical hit (Burn). 03450_ G-47 Trooper destroyed. Map ----- +----------------------------------------------------+ | | | | | | | | | | | | | | | | | | | | | | | | | | | | | | | | | | | | | | | | | ?????????????????????????????????????????????????? | | ?????????????????????????????????????????????????? | | ??????????????????????#####??????????????????????? | | ??????????????????????#"" #??????????????????????? | | ????????????###########"T ########"""T""?????????? | | ????????????# @ g ????????? | | ????????????# % k ^ r% ????????? | | ????????????# g ????????? | | ????????????# #####+##a####### ?????????? | | ????????????# #??# #????????????????? | | ????????????# #??# #????????????????? | | ????????????# #??# """" #????????????????? | | ????????????# #### " #????????????????? | | ????????????# + """""?#????????????????? | | ????????????# # ""??????????????????????? | | ????????????# # ??????????????????????? | | ????????????# + """?????????????????????? | | ?????######## #### ???????????????????????? | | ???? #??###???????????????????????? | | ???? ########?????????????????????? | | ???? # #?????????????????????? | | ?????######## # #?????????????????????? | | ????????????# %"% #?????????????????????? | | ????????????#### # #?????????????????????? | | ???????????????# %# #?????????????????????? | | ???????????????# + #?????????????????????? | | ???????????????####"#########????????????????????? | | ??????????????????# #????????????????????? | | ??????????????????# #????????????????????? | | #?????????????????# #????????????????????? | +----------------------------------------------------+ Best States ------------- Heat Dissipation 53 Energy Generation 19 Energy Capacity 310 Matter Stores 300 Matter Capacity 300 Sight Range 16 Terrain Scan Density 10 Jamming Range 16 Armor Coverage 225 Resistance: TH 15 Evasion (%) 64 Melee Accuracy 6 Armor Integrity Analysis 30 Particle Charging 20 Item Schematics ----------------- None Robot Schematics ------------------ L-31 Rogue | -7/Storage | Hacked Fabricated ------------ Nothing Alien Tech Used ----------------- None Achievements -------------- None Challenges ------------ None Cogshop Purchases (54) ------------------------ Mni. Grenade Launcher (1049) Mni. Grenade Launcher (1049) Hpw. Tractor Beam (699) Imp. Flight Unit (1049) Imp. Flight Unit (1049) Hvy. Hammer (629) Cesium-ion Thruster (1383) Imp. VTOL Module (1283) Imp. VTOL Module (1283) Lgt. Nuclear Core (751) Lrn. Tractor Beam (754) Imp. EM Shotgun (694) Cesium-ion Thruster (817) Missile Launcher (1028) Imp. VTOL Module (817) Lgt. Deuterium Engine (775) Imp. Melee Analysis Suite (878) Mak. Hammer (830) Mak. Spear (888) Cld. Plasma Cannon (910) Arm. Huge Wheel (772) Prc. Shock Rifle (809) Prc. Shock Rifle (809) Imp. Deuterium Engine (862) Imp. Proton Missile Launcher (1462) Lgt. Neutrino Core (Loot Box) System Restoration Module (Loot Box) Adv. Transmission Jammer (Loot Box) Hpw. Shock Rifle (1024) Prc. Shock Rifle (921) Imp. Medium Armor Plating (784) Imp. Particle Charger (455) Adv. Heat Sink (455) Imp. Gravmag System (697) Imp. Gravmag System (697) Arm. Huge Wheel (315) Arm. Huge Wheel (315) Arm. Huge Wheel (315) Arm. Huge Wheel (315) Proton Missile Launcher (1338) Antimatter Cannon (807) Antimatter Cannon (923) Armor Integrity Analyzer (930) Reflective Plating (644) Lrn. Tractor Beam (775) Hvy. Rocket Launcher (667) Cld. Pulse Rifle (1172) Cld. Pulse Rifle (1172) Cld. Pulse Rifle (1172) Med. Reflective Plating (934) Fission Core (853) Imp. Surge Thruster (686) Imp. Surge Thruster (686) Imp. Surge Thruster (686) Game ------ Seed EtherialSwarmNullifier Manual? 0 Play Time 00:44:25 Cumulative 457.5 hours Start 2023.03.13 @ 10:38:13 End 2023.03.13 @ 11:22:58 Sessions 1 Manual Loads 0 Difficulty Rogue Special Mode AFD2019/Pay2Buy Game No. 513 Rogue 513 Adventurer 0 Explorer 0 Win Type - Total 1 Types 1/0/0/0/0/0/0/0/0 Lore% 60 Gallery% 79 Achievement% 65 Wizard Run 0 Options --------- ASCII 0 Keyboard 0 Movement Mouse Keybinds 0 Fullscreen 2 Font 24/Smallcaps Map View 76x50 Tactical HUD 1 Map Filters NONE Filters NONE Steam 1 RUN: aafc825e-fe8c-4583-96a7-b0f9d82b0d37